{"text_format":"1","workbook":"xlsx","n_sheets":2,"sheets":["MV obv BKK","Afbeeldingen"],"not_rendered":{"charts":0,"images":37,"macros":1,"external_links":0,"defined_names":3,"comments":1,"pivot_tables":0},"unopened":[],"bounds":{"document_bytes":16777216,"sheet_cells":100000,"rows_first":2000,"rows_last":500,"rows_between":2000,"halvings":0,"cell_chars":16384,"cell_head_chars":4096},"cells_cut":0,"cells_raw":0,"read":"whole","date_system":"1900"}

{"sheet":"MV obv BKK","index":0,"n_rows":158,"n_cols":38,"rows_kept":158,"cut":false,"hidden":false,"merged":[[30,16,30,17],[27,1,27,2],[31,16,31,17],[40,1,42,8],[45,1,45,5],[30,6,30,8],[35,1,35,3],[38,1,38,8],[37,1,37,8],[31,1,31,2],[30,3,30,4],[31,3,31,4],[33,1,33,3],[23,1,23,8],[30,1,30,2],[0,1,0,8],[2,1,2,8],[21,1,21,5],[24,1,24,8],[25,1,25,8],[10,1,12,8],[15,1,15,8],[16,1,16,8],[17,1,17,8],[20,2,20,4],[5,6,6,8],[7,4,7,8],[26,1,26,8],[27,3,27,5],[92,1,101,7],[44,1,44,8],[39,1,39,8],[50,6,50,8],[51,6,51,7],[56,1,57,8],[50,1,52,3],[46,1,46,5],[60,6,60,8],[69,4,70,9],[52,6,54,8],[48,1,48,2]]}
[null,"Milieuverklaring (bestemd voor eenmalig gebruik)",null,null,null,null,null,null,null,null,null,"Rbk 2022, par. 7.2 MV op grond van een BKK"]
[]
[null,"Verklaring gebaseerd op een vast gestelde bodemkwaliteitskaart (BKK)",null,null,null,null,null,null,null,null,null,"Rbk, par. 5.3"]
[]
[]
[null,"Uniek nummer van de verklaring:",null,null,null,null,"<nummer>",null,null,null,null,"Rbk, art. 7.17 h",{"$f":"IF(G6=\"<nummer>\",1,0)","v":1}]
[null,null,null,null,null,null,null,null,null,null,null,null,null,null,null,null,null,null,null,"Grond","[rolmenu ↓]"]
[null,"Deze verklaring heeft betrekking op ",null,null,"de ontvangende bodem",null,null,null,null,null,null,"Rbk, art. 7.12",null,null,null,null,null,null,null,null,"Landbouw/Natuur (AW2000)"]
[null,null,null,null,null,null,null,null,null,null,null,null,null,null,null,null,null,null,null,null,"Wonen"]
[null,"Beperking van de geldigheid van de MV",null,null,null,null,null,null,null,null,null,"Rbk, art. 7.16 lid 1",null,null,null,null,null,null,null,null,"Industrie"]
[null,"Een verklaring op grond van een bodemkwaliteitskaart over de kwaliteit van de bodem op de toepassingslocatie wordt niet afgegeven als voor de bodemlocatie al een verklaring op grond van een bodemonderzoek is afgegeven.",null,null,null,null,null,null,null,null,null,null,null,null,null,null,null,null,null,null,"Matig verontreinigd"]
[null,null,null,null,null,null,null,null,null,null,null,null,null,null,null,null,null,null,null,null,"Sterk verontreinigd"]
[null,null,null,null,null,null,null,null,null,null,null,null,null,null,null,null,null,null,null,null,"Niet-toepasbaar"]
[null,null,null,null,null,null,null,null,null,null,null,null,null,null,null,null,null,null,null,null,"n.v.t."]
[null,"Naam en adres van de persoon die onderhavige verklaring afgeeft",null,null,null,null,null,null,null,null,null,"Rbk, art. 7.17 b"]
[null,"<naam>",null,null,null,null,null,null,null,null,null,null,{"$f":"IF(B16=\"<naam>\",1,0)","v":1}]
[null,"<postcode en plaatsnaam>",null,null,null,null,null,null,null,null,null,null,{"$f":"IF(B17=\"<postcode en plaatsnaam>\",1,0)","v":1}]
[null,"<straatnaam en nummer>",null,null,null,null,null,null,null,null,null,null,{"$f":"IF(B18=\"<straatnaam en nummer>\",1,0)","v":1}]
[]
[null,"Bodemkwaliteitskaart die die de grondslag biedt voor de afgegeven MV:",null,null,null,null,null,null,null,null,null,"bijv. Rbk, art. 5.36 lid 1d",null,null,null,null,null,null,null,null,null,null,null,null,null,null,null,null,null,null,null,null,null,"zone Sit-Gel","[rolmenu ↓]",null,"bodemlaag","[rolmenu ↓]"]
[null,"Gemeente","[rolmenu ↓]",null,null,null,null,null,null,null,null,null,{"$f":"IF(C21=\"[rolmenu ↓]\",1,0)","v":1},null,null,null,null,null,null,"[rolmenu ↓]","[rolmenu ↓]",null,null,null,null,null,null,null,null,null,null,null,null,null,"Wonen \"oud\"",null,null,"0,0-0,5 m-mv"]
[null,{"$f":"IF(C21=\"[rolmenu ↓]\",\"BKK\",VLOOKUP(C21,T22:U57,2,FALSE))","v":"BKK"},null,null,null,null,null,null,null,null,null,null,null,null,null,null,null,null,null,"Beek","Bodemfunctieklassenkaart en bodemkwaliteitskaart Gemeenten Beek, Beekdaelen en Stein",null,null,null,null,null,null,null,null,null,null,null,null,null,null,null,null,"0,5-3,5 m-mv"]
[null,null,null,null,null,null,null,null,null,null,null,null,null,null,null,null,null,null,null,"Beekdaelen","Bodemfunctieklassenkaart en bodemkwaliteitskaart Gemeenten Beek, Beekdaelen en Stein",null,null,null,null,null,null,null,null,null,null,null,null,null,null,null,null,"0,5-2,0 m-mv"]
[null,"Aanduiding en omschrijving van de toepassingslocatie:",null,null,null,null,null,null,null,null,null,"Rbk, art. 7.17 d",null,null,null,null,null,null,null,"Brunssum","BKK"]
[null,"Adres of kadastrale aanduiding",null,null,null,null,null,null,null,null,null,null,null,null,null,null,null,null,null,"Brunssum","BKK"]
[null,"<postcode en plaatsnaam>",null,null,null,null,null,null,null,null,null,null,{"$f":"IF(B26=\"<postcode en plaatsnaam>\",1,0)","v":1},null,null,null,null,null,null,"Eijsden-Margraten","BKK"]
[null,"<straatnaam en nummer>",null,null,null,null,null,null,null,null,null,null,{"$f":"IF(B27=\"<straatnaam en nummer>\",1,0)","v":1},null,null,null,null,null,null,"Gulpen-Wittem","BKK"]
[null,"Kadastrale gemeente: ",null,"<kadastrale gemeente>",null,null,"<sectie>","<nummer>",null,null,null,null,{"$f":"IF(D28=\"<kadastrale gemeente>\",1,0)","v":1},{"$f":"IF(G28=\"<sectie>\",1,0)","v":1},{"$f":"IF(H28=\"<nummer>\",1,0)","v":1},null,null,null,null,"Heerlen","BKK"]
[null,null,null,null,null,null,"<sectie>","<nummer>",null,null,null,null,null,{"$f":"IF(G29=\"<sectie>\",1,0)","v":1},{"$f":"IF(H29=\"<nummer>\",1,0)","v":1},null,null,null,null,"Kerkrade","BKK"]
[null,"Coördinaten",null,null,null,null,null,null,null,null,{"$f":"IF(H28=\"<nummer>\",1,0)","v":1},null,{"$f":"IF(G28=\"<sectie>\",1,0)","v":1},null,null,null,null,null,null,"Landgraaf","BKK"]
[null,"X-coördinaat",null,null,null,{"$f":"IF(ISNUMBER(D31)=TRUE,\"=GPS\",\"\")","v":""},{"$f":"IF(ISNUMBER(D32)=TRUE,AH33,\"\")","v":""},null,null,null,null,null,{"$f":"IF(D31=\"<coordinaat>\",1,0)","v":0},{"$f":"ISNUMBER(D31)","v":false},null,null,"<X-coördinaat>",null,null,"Maastricht","BKK",null,null,null,null,null,null,null,null,null,{"$f":"IF(D31=\"<coordinaat>\",\"\",IF(D31>0,(52.15517+(SUM((((((3235.65389*((D32-463000)*10^-5))+(-32.58297*((D31-155000)*10^-5)^2)+(-0.2475*((D32-463000)*10^-5)^2)+(-0.84978*((D31-155000)*10^-5)^2*((D32-463000)*10^-5))+(-0.0655*((D32-463000)*10^-5)^3)+(-0.01709*((D31-155000)*10^-5)^2*((D32-463000)*10^-5)^2)+(-0.00738*((D31-155000)*10^-5))+(0.0053*((D31-155000)*10^-5)^4)+(-0.00039*((D31-155000)*10^-5)^2*((D32-463000)*10^-5)^3)+(0.00033*((D31-155000)*10^-5)^4*((D32-463000)*10^-5))+(-0.00012*((D31-155000)*10^-5)*((D32-463000)*10^-5)))))))/3600)),\"\"))","v":""},{"$f":"ROUND(AE31,6)","v":{"$error":"#VALUE!"}},{"$f":"SUBSTITUTE(AF31,\",\",\".\")","v":{"$error":"#VALUE!"}}]
[null,"Y-coördinaat",null,null,null,null,null,null,null,null,null,null,{"$f":"IF(D32=\"<coordinaat>\",1,0)","v":0},{"$f":"ISNUMBER(D32)","v":false},null,null,"<Y-coördinaat>",null,null,"Meerssen","BKK",null,null,null,null,null,null,null,null,null,{"$f":"IF(D32=\"<coordinaat>\",\"\",IF(D32>0,(5.387206+(SUM((((((5260.52916*((D31-155000)*10^-5))+(105.94684*((D31-155000)*10^-5)*((D32-463000)*10^-5))+(2.45656*((D31-155000)*10^-5)*((D32-463000)*10^-5)^2)+(-0.81885*((D31-155000)*10^-5)^3)+(0.05594*((D31-155000)*10^-5)*((D32-463000)*10^-5)^3)+(-0.05607*((D31-155000)*10^-5)^3*((D32-463000)*10^-5))+(0.01199*((D32-463000)*10^-5))+(-0.00256*((D31-155000)*10^-5)^3*((D32-463000)*10^-5)^2)+(0.00128*((D31-155000)*10^-5)*((D32-463000)*10^-5)^4)+(0.00022*((D32-463000)*10^-5)^2)+(-0.00022*((D31-155000)*10^-5)^2)+(0.00026*((D31-155000)*10^-5)^5))))))/3600)),\"\"))","v":""},{"$f":"ROUND(AE32,6)","v":{"$error":"#VALUE!"}},{"$f":"SUBSTITUTE(AF32,\",\",\".\")","v":{"$error":"#VALUE!"}}]
[null,"De toepassing vindt plaats in de bodemlaag:",null,null,null,null,null,null,null,null,null,null,null,null,null,null,null,null,null,"Simpelveld","BKK",null,null,null,null,null,null,null,null,null,null,null,null,{"$f":"AG31&\", \"&AG32","v":{"$error":"#VALUE!"}}]
[null,"[rolmenu ↓]",null,null,null,null,null,null,null,null,null,null,{"$f":"IF(B34=\"[rolmenu ↓]\",1,0)","v":1},null,null,null,null,null,null,"Sittard-Geleen","Bodemkwaliteits- en bodemfunctieklassenkaart gemeente Sittard-Geleen 2021-2025"]
[null,"Het unieke nummer van het rapport van het vooronderzoek (vo) NEN5725/NEN5717",null,null,null,null,null,null,null,null,null,"Rbk, art. 7.17 f",null,null,null,null,null,null,null,"Stein","Bodemfunctieklassenkaart en bodemkwaliteitskaart Gemeenten Beek, Beekdaelen en Stein",null,null,null,null,null,null,null,null,null,null,null,null,null,"Wonen \"nieuw\""]
[null,"<uniek nummer rapport>",null,null,null,null,null,null,null,null,null,null,{"$f":"IF(B36=\"<uniek nummer rapport>\",1,0)","v":1},null,null,null,null,null,null,"Vaals","BKK",null,null,null,null,null,null,null,null,null,null,null,null,null,"Industrie"]
[null,"Naam en adres van de persoon die het vooronderzoek heeft verricht",null,null,null,null,null,null,null,null,null,"Rbk, art. 7.17 e",null,null,null,null,null,null,null,"Valkenburg a/d Geul","BKK",null,null,null,null,null,null,null,null,null,null,null,null,null,"Buitengebied"]
[null,"<naam onderzoeksbureau en naam contactpersoon>",null,null,null,null,null,null,null,null,null,null,{"$f":"IF(B38=\"<naam onderzoeksbureau en naam contactpersoon>\",1,0)","v":1},null,null,null,null,null,null,"Voerendaal","BKK"]
[null,"<postcode en plaats>",null,null,null,null,null,null,null,null,null,null,{"$f":"IF(B39=\"<postcode en plaats>\",1,0)","v":1},null,null,null,null,null,null,"IMD-BNS","Bodemfunctieklassenkaart en bodemkwaliteitskaart Gemeenten Beek, Beekdaelen en Stein"]
[null,"<straatnaam en nummer>",null,null,null,null,null,null,null,null,null,null,{"$f":"IF(B40=\"<straatnaam en nummer>\",1,0)","v":1},null,null,null,null,null,null,"Provincie Limburg","BKK"]
[null,"Concludeert het vooronderzoek dat er geen reden is om aan te nemen dat de bodem in een betere bodemkwaliteitsklasse moet worden ingedeeld dan op de bodemkwaliteitskaart is weergegeven  voor het gebied waarin de toepassingslocatie is gelegen.",null,null,null,null,null,null,null,null,null,null,null,null,null,null,null,null,null,"Mook en Middelaar","BKK"]
[null,null,null,null,null,null,null,null,null,null,null,null,null,null,null,null,null,null,null,"Gennep","BKK"]
[null,null,null,null,null,null,null,null,null,null,null,null,null,null,null,null,null,null,null,"Bergen","BKK"]
[null,null,{"$f":"IF(M51=TRUE,\"ja\",\"nee\")","v":"nee"},null,null,null,null,null,null,null,null,null,true,null,null,null,null,null,null,"Venray","BKK"]
[null,{"$f":"IF(M44=FALSE,\"De milieuverklaring kan niet afgegeven worden.\",\"\")","v":""},null,null,null,null,null,null,null,null,null,null,null,null,null,null,null,null,null,"Horst aan de Maas","BKK"]
[null,"De ontvangende bodem is ingedeeld in de kwaliteitsklasse:",null,null,null,null,null,null,null,null,null,"Rbk, art. 7.17 g",null,null,null,null,null,null,null,"Venlo","BKK"]
[null,"[rolmenu ↓]",null,null,null,null,null,null,null,null,null,null,{"$f":"IF(B47=\"[rolmenu ↓]\",1,0)","v":1},null,null,null,null,null,null,"Peel en Maas","BKK"]
[null,null,null,null,null,null,null,null,null,null,null,null,null,null,null,null,null,null,null,"Nederweert","BKK"]
[null,"Bij deze MV horen",null,0,"bijlagen",null,null,null,null,null,null,null,null,null,null,null,null,null,null,"Beesel","BKK"]
[null,null,null,null,null,null,null,null,null,null,null,null,null,null,null,null,null,null,null,"Leudal","BKK"]
[null,"(geautoriseerd) natuurlijk persoon die de milieuverklaring afgeeft",null,null,"naam:",null,"<naam>",null,null,null,null,"Rbk, art. 7.17 i",{"$f":"IF(G51=\"<naam>\",1,0)","v":1},null,null,null,null,null,null,"Weert","BKK"]
[null,null,null,null,"datum:",null,"<datum>",null,"<uurtijd>",null,null,null,{"$f":"IF(G52=\"<datum>\",1,0)","v":1},null,null,null,null,null,null,"Roermond","BKK"]
[null,null,null,null,"ondertekening:",null,"<handtekening>",null,null,null,null,null,{"$f":"IF(G53=\"<handtekening>\",1,0)","v":1},null,null,null,null,null,null,"Maasgouw","BKK"]
[null,null,null,null,null,null,null,null,null,null,null,null,{"$f":"IF(I52=\"<uurtijd>\",1,0)","v":1},null,null,null,null,null,null,"Roerdalen","BKK"]
[null,null,null,null,null,null,null,null,null,null,null,null,null,null,null,null,null,null,null,"Echt-Susteren","BKK"]
[null,null,null,null,null,null,null,null,null,null,null,null,null,null,null,null,null,null,null,"Servicecentrum MER","BKK"]
[null,"Disclaimer. Deze verklaring is geldig op het moment van ondertekening. Wat er daarna met de ontvangende bodem gebeurt is voor verantwoordelijkheid van de daadwerkelijke uitvoerder.",null,null,null,null,null,null,null,null,null,null,null,null,null,null,null,null,null,"volgt","BKK"]
[]
[]
[]
[]
[]
[]
[]
[]
[]
[]
[]
[]
[]
[]
[]
[]
[]
[]
[]
[]
[]
[]
[]
[]
[]
[]
[]
[]
[]
[]
[]
[]
[]
[]
[]
[null,"Disclaimer. Deze verklaring is geldig op het moment van ondertekening. Wat er daarna met de partij gebeurt is voor verantwoordelijkheid van de daadwerkelijke uitvoerder."]
[]
[]
[]
[]
[]
[]
[]
[]
[]
[]
[]
[]
[]
[]
[]
[]
[]
[]
[]
[]
[]
[]
[]
[]
[]
[]
[]
[]
[]
[]
[]
[]
[]
[]
[]
[]
[]
[]
[]
[]
[]
[]
[]
[]
[]
[]
[]
[]
[]
[]
[]
[]
[]
[]
[]
[]
[]
[]
[]
[]
[]
[]
[]
[]
[null,"nog aanpassen _> Deze Milieuhygiënische verklaring is maximaal 3 jaar geldig na de datum van uitgifte en u dient deze minimaal 5 jaar te bewaren. Nadere specificaties over de partij zijn op te vragen bij de certificaathouder. Beslis tijdig of u een eigen onderzoek op de partij wilt uitvoeren en laat dit aan de certificaathouder weten. Op grond van artikel 42 van het Besluit bodemkwaliteit dient het voornemen tot toepassen van de partij minimaal vijf dagen voor de werkelijke toepassing gemeld te worden via www.meldpuntbodemkwaliteit.nl (behalve als er sprake is van een vrijstelling zoals genoemd onder lid 8 van genoemd artikel). Deze erkende Milieuhygiënische verklaring is de milieuhygiënische verklaring die bij de melding dient te worden gevoegd. Bij het splitsen van een partij gelden de administratieve bepalingen in artikel 4.3.1 van de Regeling bodemkwaliteit. Bij transport van grond of bagger moeten partijen die gelden als ‘afvalstof’ vergezeld gaan van een begeleidingsbrief, zoals bedoeld in de Wet milieubeheer en het Besluit en de Regeling melden bedrijfsafvalstoffen en gevaarlijke afvalstoffen. Zie voor verdere info www.lma.nl."]

{"sheet":"Afbeeldingen","index":1,"n_rows":37,"n_cols":3,"rows_kept":37,"cut":false,"hidden":false,"merged":[]}
[null,null,"u kunt in voorkomende gevallen de gemeentenamen en gemeentelogos vervangen door die van uw keuze"]
["[rolmenu ↓]",null,{"$f":"INDEX(Afbeeldingen!$B$3:$B$10,MATCH(#REF!,Afbeeldingen!$A$3:$A$10,0))","v":{"$error":"#REF!"}}]
["Beek",null,"Beek"]
["Beekdaelen"]
["Brunssum"]
["Eijsden-Margraten"]
["Gulpen-Wittem"]
["Heerlen"]
["Kerkrade"]
["Landgraaf"]
["Maastricht"]
["Meerssen"]
["Simpelveld"]
["Sittard-Geleen"]
["Stein"]
["Vaals"]
["Valkenburg a/d Geul"]
["Voerendaal"]
["IMD-BNS"]
["Provincie Limburg"]
["Mook en Middelaar"]
["Gennep"]
["Bergen"]
["Venray"]
["Horst aan de Maas"]
["Venlo"]
["Peel en Maas"]
["Nederweert"]
["Beesel"]
["Leudal"]
["Weert"]
["Roermond"]
["Maasgouw"]
["Roerdalen"]
["Echt-Susteren"]
["Servicecentrum MER"]
["volgt"]